[Event "Titled Tuesday Blitz February 28 Early 2023"]
[White "Florescu, Codrut-Constantin"]
[Black "Buscar, Michael"]
[WhiteFideId "1202200"]
[BlackFideId "2603616"]
[WhiteElo "2191"]
[BlackElo "2010"]
[Result "1-0"]
[Round "06"]
[TimeControl "180+2"]
[Date "2023.02.28"]
[WhiteClock "0:01:19"]
[BlackClock "0:01:03"]

1. e4 {[%clk 0:03:00]}  c5 {[%clk 0:02:49]} 2. Nf3 {[%clk 0:03:00]}  Nc6 {[%clk 0:02:48]} 3. d4 {[%clk 0:03:00]}  cxd4 {[%clk 0:02:48]} 4. Nxd4 {[%clk 0:03:01]}  Nf6 {[%clk 0:02:48]} 5. Nc3 {[%clk 0:03:01]}  e5 {[%clk 0:02:49]} 6. Ndb5 {[%clk 0:03:02]}  h6 {[%clk 0:02:48]} 7. Nd5 {[%clk 0:02:56]}  Nxd5 {[%clk 0:02:48]} 8. exd5 {[%clk 0:02:57]}  a6 {[%clk 0:02:49]} 9. Nc3 {[%clk 0:02:28]}  Nb8 {[%clk 0:02:46]} 10. Bd3 {[%clk 0:02:21]}  d6 {[%clk 0:02:45]} 11. O-O {[%clk 0:02:21]}  Be7 {[%clk 0:02:38]} 12. f4 {[%clk 0:02:20]}  Nd7 {[%clk 0:02:37]} 13. f5 {[%clk 0:02:20]}  Bg5 {[%clk 0:02:35]} 14. Ne4 {[%clk 0:02:16]}  Bxc1 {[%clk 0:02:24]} 15. Rxc1 {[%clk 0:02:05]}  Nf6 {[%clk 0:02:22]} 16. c4 {[%clk 0:02:01]}  Nxe4 {[%clk 0:02:19]} 17. Bxe4 {[%clk 0:02:00]}  Qb6+ {[%clk 0:02:18]} 18. Rf2 {[%clk 0:01:59]}  Bd7 {[%clk 0:02:10]} 19. Qd2 {[%clk 0:01:58]}  O-O-O {[%clk 0:01:54]} 20. b4 {[%clk 0:01:57]}  Kb8 {[%clk 0:01:52]} 21. c5 {[%clk 0:01:57]}  Qc7 {[%clk 0:01:44]} 22. c6 {[%clk 0:01:57]}  Bc8 {[%clk 0:01:44]} 23. a4 {[%clk 0:01:33]}  b6 {[%clk 0:01:41]} 24. a5 {[%clk 0:01:25]}  b5 {[%clk 0:01:38]} 25. Qe3 {[%clk 0:01:25]}  Rde8 {[%clk 0:01:28]} 26. Qb6+ {[%clk 0:01:24]}  Qxb6 {[%clk 0:01:26]} 27. axb6 {[%clk 0:01:24]}  Re7 {[%clk 0:01:11]} 28. f6 {[%clk 0:01:19]}  gxf6 {[%clk 0:01:05]} 29. Rxf6 {[%clk 0:01:19]}  Rd8 {[%clk 0:01:03]} 30. c7+ {[%clk 0:01:19]} 1-0


[Site "https://www.chess.com"]

[Event "Titled Tuesday Blitz February 28 Early 2023"]
[White "Burke, John F"]
[Black "Lagno, Kateryna"]
[WhiteFideId "2052970"]
[BlackFideId "14109336"]
[WhiteElo "2239"]
[BlackElo "2508"]
[Result "0-1"]
[Round "06"]
[TimeControl "180+2"]
[Date "2023.02.28"]
[WhiteClock "0:00:20"]
[BlackClock "0:01:13"]

1. d4 {[%clk 0:02:58]}  Nf6 {[%clk 0:02:59]} 2. c4 {[%clk 0:02:51]}  g6 {[%clk 0:02:59]} 3. Nc3 {[%clk 0:02:51]}  d5 {[%clk 0:02:59]} 4. Nf3 {[%clk 0:02:50]}  Bg7 {[%clk 0:02:59]} 5. Bf4 {[%clk 0:02:50]}  O-O {[%clk 0:02:57]} 6. Rc1 {[%clk 0:02:51]}  dxc4 {[%clk 0:02:53]} 7. e4 {[%clk 0:02:48]}  c5 {[%clk 0:02:53]} 8. d5 {[%clk 0:02:48]}  b5 {[%clk 0:02:49]} 9. Nxb5 {[%clk 0:02:42]}  Qa5+ {[%clk 0:02:49]} 10. Nc3 {[%clk 0:02:40]}  Nxe4 {[%clk 0:02:49]} 11. Be5 {[%clk 0:02:36]}  Nxc3 {[%clk 0:02:40]} 12. Bxc3 {[%clk 0:02:35]}  Bxc3+ {[%clk 0:02:37]} 13. Rxc3 {[%clk 0:02:30]}  Qxa2 {[%clk 0:02:36]} 14. Qd2 {[%clk 0:02:18]}  Qb1+ {[%clk 0:02:22]} 15. Qc1 {[%clk 0:02:06]}  Qe4+ {[%clk 0:02:17]} 16. Re3 {[%clk 0:02:04]}  Qxd5 {[%clk 0:02:18]} 17. Bxc4 {[%clk 0:02:04]}  Qd6 {[%clk 0:02:18]} 18. O-O {[%clk 0:02:03]}  Nc6 {[%clk 0:02:18]} 19. Rd1 {[%clk 0:02:03]}  Nd4 {[%clk 0:02:16]} 20. Ng5 {[%clk 0:01:46]}  Bb7 {[%clk 0:02:11]} 21. Rh3 {[%clk 0:01:11]}  h5 {[%clk 0:02:00]} 22. Qb1 {[%clk 0:01:00]}  Rad8 {[%clk 0:01:57]} 23. Re1 {[%clk 0:00:48]}  Qf4 {[%clk 0:01:57]} 24. Rxh5 {[%clk 0:00:44]}  Nf5 {[%clk 0:01:26]} 25. Nh3 {[%clk 0:00:35]}  Qxc4 {[%clk 0:01:22]} 26. Rxf5 {[%clk 0:00:25]}  gxf5 {[%clk 0:01:19]} 27. Qxf5 {[%clk 0:00:25]}  Rd6 {[%clk 0:01:13]} 28. Ng5 {[%clk 0:00:20]}  Rg6 {[%clk 0:01:13]} 0-1


[Site "https://www.chess.com"]

[Event "Titled Tuesday Blitz February 28 Early 2023"]
[White "Peng, Li Min"]
[Black "Yayloyan, Konstantin"]
[WhiteFideId "14112620"]
[BlackFideId "13307088"]
[WhiteElo "2436"]
[BlackElo "2190"]
[Result "1/2-1/2"]
[Round "06"]
[TimeControl "180+2"]
[Date "2023.02.28"]
[WhiteClock "0:00:11"]
[BlackClock "0:00:23"]

1. e4 {[%clk 0:03:00]}  c5 {[%clk 0:02:58]} 2. Nc3 {[%clk 0:03:01]}  Nc6 {[%clk 0:02:57]} 3. f4 {[%clk 0:03:01]}  g6 {[%clk 0:02:55]} 4. Nf3 {[%clk 0:03:02]}  Bg7 {[%clk 0:02:56]} 5. Bc4 {[%clk 0:03:02]}  e6 {[%clk 0:02:56]} 6. d3 {[%clk 0:03:03]}  Nge7 {[%clk 0:02:56]} 7. O-O {[%clk 0:03:04]}  d5 {[%clk 0:02:56]} 8. Bb3 {[%clk 0:03:04]}  Nd4 {[%clk 0:02:56]} 9. Nxd4 {[%clk 0:03:03]}  cxd4 {[%clk 0:02:55]} 10. Ne2 {[%clk 0:03:04]}  O-O {[%clk 0:02:50]} 11. Qe1 {[%clk 0:03:00]}  b5 {[%clk 0:02:45]} 12. e5 {[%clk 0:02:52]}  Nc6 {[%clk 0:02:45]} 13. a4 {[%clk 0:02:51]}  b4 {[%clk 0:02:41]} 14. a5 {[%clk 0:02:43]}  Nxa5 {[%clk 0:02:27]} 15. Qxb4 {[%clk 0:02:38]}  Nxb3 {[%clk 0:02:27]} 16. Qxb3 {[%clk 0:02:39]}  f6 {[%clk 0:02:26]} 17. Nxd4 {[%clk 0:01:59]}  fxe5 {[%clk 0:02:22]} 18. Nc6 {[%clk 0:01:59]}  Qc7 {[%clk 0:02:10]} 19. Nxe5 {[%clk 0:01:54]}  Bxe5 {[%clk 0:02:07]} 20. fxe5 {[%clk 0:01:55]}  Rxf1+ {[%clk 0:02:07]} 21. Kxf1 {[%clk 0:01:55]}  Qxe5 {[%clk 0:02:07]} 22. Qc3 {[%clk 0:01:32]}  Qxc3 {[%clk 0:01:54]} 23. bxc3 {[%clk 0:01:33]}  Bd7 {[%clk 0:01:54]} 24. Ra5 {[%clk 0:01:21]}  a6 {[%clk 0:01:48]} 25. Ke2 {[%clk 0:01:19]}  Kf7 {[%clk 0:01:44]} 26. Bf4 {[%clk 0:01:12]}  Kf6 {[%clk 0:01:41]} 27. Bd6 {[%clk 0:01:08]}  Bc6 {[%clk 0:01:37]} 28. Rc5 {[%clk 0:00:40]}  Rc8 {[%clk 0:01:34]} 29. Ke3 {[%clk 0:00:27]}  Bd7 {[%clk 0:00:41]} 30. Kd4 {[%clk 0:00:15]}  Rxc5 {[%clk 0:00:34]} 31. Kxc5 {[%clk 0:00:13]}  Ba4 {[%clk 0:00:34]} 32. Kb6 {[%clk 0:00:06]}  Bxc2 {[%clk 0:00:33]} 33. Kxa6 {[%clk 0:00:06]}  Bxd3+ {[%clk 0:00:34]} 34. Kb6 {[%clk 0:00:07]}  e5 {[%clk 0:00:34]} 35. Kc5 {[%clk 0:00:06]}  Ke6 {[%clk 0:00:34]} 36. Bb8 {[%clk 0:00:07]}  Bf1 {[%clk 0:00:33]} 37. g3 {[%clk 0:00:07]}  Be2 {[%clk 0:00:31]} 38. Bc7 {[%clk 0:00:07]}  h5 {[%clk 0:00:31]} 39. Bb8 {[%clk 0:00:07]}  Bc4 {[%clk 0:00:31]} 40. Bc7 {[%clk 0:00:07]}  Kf5 {[%clk 0:00:32]} 41. h4 {[%clk 0:00:05]}  Ke4 {[%clk 0:00:31]} 42. Bb8 {[%clk 0:00:05]}  Bf1 {[%clk 0:00:30]} 43. Bc7 {[%clk 0:00:04]}  d4 {[%clk 0:00:31]} 44. cxd4 {[%clk 0:00:03]}  exd4 {[%clk 0:00:31]} 45. Kb4 {[%clk 0:00:03]}  Kf3 {[%clk 0:00:23]} 46. Be5 {[%clk 0:00:02]}  d3 {[%clk 0:00:23]} 47. Kc3 {[%clk 0:00:02]}  Ke2 {[%clk 0:00:20]} 48. Bf4 {[%clk 0:00:03]}  Bh3 {[%clk 0:00:21]} 49. Bg5 {[%clk 0:00:03]}  Bf5 {[%clk 0:00:20]} 50. Bf4 {[%clk 0:00:03]}  Kf3 {[%clk 0:00:20]} 51. Kd2 {[%clk 0:00:04]}  Kf2 {[%clk 0:00:19]} 52. Bg5 {[%clk 0:00:04]}  Kxg3 {[%clk 0:00:19]} 53. Bd8 {[%clk 0:00:04]}  Kf3 {[%clk 0:00:18]} 54. Bg5 {[%clk 0:00:05]}  Ke4 {[%clk 0:00:19]} 55. Bd8 {[%clk 0:00:06]}  Bg4 {[%clk 0:00:20]} 56. Bg5 {[%clk 0:00:07]}  Be2 {[%clk 0:00:20]} 57. Bd8 {[%clk 0:00:08]}  Kf5 {[%clk 0:00:20]} 58. Bg5 {[%clk 0:00:09]}  Kg4 {[%clk 0:00:20]} 59. Bd8 {[%clk 0:00:09]}  Kf3 {[%clk 0:00:21]} 60. Bg5 {[%clk 0:00:10]}  Kf2 {[%clk 0:00:22]} 61. Bd8 {[%clk 0:00:10]}  Kg3 {[%clk 0:00:23]} 62. Bg5 {[%clk 0:00:11]}  Kg4 {[%clk 0:00:23]} 63. Bd8 {[%clk 0:00:11]}  Bf1 {[%clk 0:00:23]} 1/2-1/2


[Site "https://www.chess.com"]

[Event "Titled Tuesday Blitz February 28 Early 2023"]
[White "Wagh Suyog"]
[Black "Shuvalov, Evgenij"]
[WhiteFideId "25071688"]
[BlackFideId "4187237"]
[WhiteElo "2288"]
[BlackElo "2080"]
[Result "0-1"]
[Round "06"]
[TimeControl "180+2"]
[Date "2023.02.28"]
[WhiteClock "0:01:32"]
[BlackClock "0:00:55"]

1. e4 {[%clk 0:03:00]}  e6 {[%clk 0:02:57]} 2. d4 {[%clk 0:02:59]}  d5 {[%clk 0:02:56]} 3. Bd3 {[%clk 0:02:59]}  c5 {[%clk 0:02:54]} 4. exd5 {[%clk 0:02:59]}  exd5 {[%clk 0:02:55]} 5. Nf3 {[%clk 0:03:00]}  c4 {[%clk 0:02:54]} 6. Be2 {[%clk 0:03:00]}  Nc6 {[%clk 0:02:53]} 7. O-O {[%clk 0:02:59]}  Nf6 {[%clk 0:02:53]} 8. b3 {[%clk 0:03:00]}  cxb3 {[%clk 0:02:50]} 9. axb3 {[%clk 0:03:01]}  Be7 {[%clk 0:02:50]} 10. c4 {[%clk 0:03:01]}  O-O {[%clk 0:02:51]} 11. Nc3 {[%clk 0:03:01]}  Bf5 {[%clk 0:02:47]} 12. c5 {[%clk 0:03:00]}  a6 {[%clk 0:02:40]} 13. Na4 {[%clk 0:02:59]}  Qc7 {[%clk 0:02:36]} 14. g3 {[%clk 0:02:57]}  Rae8 {[%clk 0:02:26]} 15. Bf4 {[%clk 0:02:56]}  Qd8 {[%clk 0:02:26]} 16. Ne5 {[%clk 0:02:48]}  Nxe5 {[%clk 0:02:17]} 17. Bxe5 {[%clk 0:02:48]}  Nd7 {[%clk 0:02:13]} 18. Bf4 {[%clk 0:02:48]}  Nb8 {[%clk 0:02:12]} 19. Bf3 {[%clk 0:02:45]}  Nc6 {[%clk 0:02:10]} 20. Nb6 {[%clk 0:02:45]}  Be4 {[%clk 0:02:03]} 21. Bxe4 {[%clk 0:02:44]}  dxe4 {[%clk 0:02:04]} 22. d5 {[%clk 0:02:41]}  Bxc5 {[%clk 0:02:01]} 23. dxc6 {[%clk 0:02:41]}  Qxb6 {[%clk 0:02:01]} 24. cxb7 {[%clk 0:02:39]}  Qxb7 {[%clk 0:01:58]} 25. Qc2 {[%clk 0:02:36]}  Rc8 {[%clk 0:01:54]} 26. Ra4 {[%clk 0:02:35]}  e3 {[%clk 0:01:47]} 27. h4 {[%clk 0:02:04]}  exf2+ {[%clk 0:01:45]} 28. Kh2 {[%clk 0:02:03]}  Bb6 {[%clk 0:01:36]} 29. Qe2 {[%clk 0:01:54]}  a5 {[%clk 0:01:30]} 30. Re4 {[%clk 0:01:54]}  h6 {[%clk 0:01:24]} 31. h5 {[%clk 0:01:41]}  Qd5 {[%clk 0:01:20]} 32. Re5 {[%clk 0:01:39]}  Qxb3 {[%clk 0:01:18]} 33. Qg4 {[%clk 0:01:39]}  Rc6 {[%clk 0:01:08]} 34. Re7 {[%clk 0:01:32]}  Qd3 {[%clk 0:01:03]} 35. Re4 {[%clk 0:01:32]}  Qxf1 {[%clk 0:00:55]} 0-1


[Site "https://www.chess.com"]

[Event "Titled Tuesday Blitz February 28 Early 2023"]
[White "Balint, Vilmos"]
[Black "Iskusnyh, Sergei"]
[WhiteFideId "718050"]
[BlackFideId "4120027"]
[WhiteElo "2034"]
[BlackElo "2492"]
[Result "0-1"]
[Round "06"]
[TimeControl "180+2"]
[Date "2023.02.28"]
[WhiteClock "0:01:00"]
[BlackClock "0:00:05"]

1. d4 {[%clk 0:03:00]}  d5 {[%clk 0:02:59]} 2. Nc3 {[%clk 0:03:00]}  Nf6 {[%clk 0:02:57]} 3. Bf4 {[%clk 0:03:00]}  c5 {[%clk 0:02:55]} 4. Nb5 {[%clk 0:03:00]}  Qa5+ {[%clk 0:02:50]} 5. Nc3 {[%clk 0:03:00]}  cxd4 {[%clk 0:02:39]} 6. Qxd4 {[%clk 0:02:59]}  Nc6 {[%clk 0:02:39]} 7. Qa4 {[%clk 0:02:59]}  Qxa4 {[%clk 0:02:34]} 8. Nxa4 {[%clk 0:03:00]}  e5 {[%clk 0:02:33]} 9. Bd2 {[%clk 0:02:56]}  Ne4 {[%clk 0:02:31]} 10. Nf3 {[%clk 0:02:44]}  Be6 {[%clk 0:02:14]} 11. e3 {[%clk 0:02:43]}  Be7 {[%clk 0:02:03]} 12. a3 {[%clk 0:02:36]}  O-O {[%clk 0:01:57]} 13. Nc3 {[%clk 0:02:35]}  Nxd2 {[%clk 0:01:57]} 14. Nxd2 {[%clk 0:02:36]}  d4 {[%clk 0:01:56]} 15. Nb5 {[%clk 0:02:28]}  Rac8 {[%clk 0:01:43]} 16. exd4 {[%clk 0:02:20]}  exd4 {[%clk 0:01:42]} 17. a4 {[%clk 0:02:13]}  a6 {[%clk 0:01:31]} 18. Na3 {[%clk 0:02:12]}  Rfe8 {[%clk 0:01:28]} 19. Bd3 {[%clk 0:02:09]}  Bb4 {[%clk 0:01:07]} 20. Kd1 {[%clk 0:02:03]}  Ne5 {[%clk 0:01:06]} 21. Re1 {[%clk 0:01:53]}  Ng4 {[%clk 0:00:56]} 22. Re2 {[%clk 0:01:49]}  Bd5 {[%clk 0:00:41]} 23. f3 {[%clk 0:01:49]}  Ne3+ {[%clk 0:00:40]} 24. Kc1 {[%clk 0:01:45]}  g6 {[%clk 0:00:30]} 25. Ne4 {[%clk 0:01:35]}  Kg7 {[%clk 0:00:28]} 26. c3 {[%clk 0:01:30]}  f5 {[%clk 0:00:21]} 27. Ng3 {[%clk 0:01:18]}  dxc3 {[%clk 0:00:20]} 28. Rxe3 {[%clk 0:01:05]}  Rxe3 {[%clk 0:00:18]} 29. Bxf5 {[%clk 0:01:06]}  cxb2+ {[%clk 0:00:16]} 30. Kxb2 {[%clk 0:01:06]}  Bc3+ {[%clk 0:00:15]} 31. Kc2 {[%clk 0:01:06]}  Bxa1+ {[%clk 0:00:14]} 32. Bxc8 {[%clk 0:01:06]}  Rxa3 {[%clk 0:00:15]} 33. Bd7 {[%clk 0:01:06]}  Ra2+ {[%clk 0:00:14]} 34. Kb1 {[%clk 0:01:06]}  Bf6 {[%clk 0:00:12]} 35. Ne4 {[%clk 0:01:04]}  Rxg2 {[%clk 0:00:10]} 36. Nd6 {[%clk 0:01:04]}  b6 {[%clk 0:00:07]} 37. Bc8 {[%clk 0:01:03]}  a5 {[%clk 0:00:05]} 38. Ba6 {[%clk 0:01:03]}  Bxf3 {[%clk 0:00:05]} 39. Bc4 {[%clk 0:01:02]}  Be5 {[%clk 0:00:05]} 40. Nc8 {[%clk 0:01:01]}  Kh6 {[%clk 0:00:05]} 41. Kc1 {[%clk 0:01:01]}  Bf4+ {[%clk 0:00:04]} 42. Kb1 {[%clk 0:01:01]}  Be4+ {[%clk 0:00:05]} 43. Ka1 {[%clk 0:01:00]}  Be5# {[%clk 0:00:05]} 0-1


[Site "https://www.chess.com"]

[Event "Titled Tuesday Blitz February 28 Early 2023"]
[White "Zhukova, Natalia"]
[Black "Comas Fabrego, Lluis"]
[WhiteFideId "14101513"]
[BlackFideId "2200325"]
[WhiteElo "2297"]
[BlackElo "2523"]
[Result "0-1"]
[Round "06"]
[TimeControl "180+2"]
[Date "2023.02.28"]
[WhiteClock "0:00:01"]
[BlackClock "0:00:06"]

1. c4 {[%clk 0:03:00]}  e6 {[%clk 0:02:59]} 2. Nc3 {[%clk 0:02:59]}  d5 {[%clk 0:02:59]} 3. d4 {[%clk 0:03:00]}  Bb4 {[%clk 0:02:58]} 4. a3 {[%clk 0:02:58]}  Bxc3+ {[%clk 0:02:57]} 5. bxc3 {[%clk 0:02:59]}  Nf6 {[%clk 0:02:55]} 6. e3 {[%clk 0:03:00]}  O-O {[%clk 0:02:48]} 7. cxd5 {[%clk 0:02:57]}  Nxd5 {[%clk 0:02:45]} 8. Qc2 {[%clk 0:02:52]}  c5 {[%clk 0:02:42]} 9. Bd3 {[%clk 0:02:51]}  h6 {[%clk 0:02:38]} 10. Nf3 {[%clk 0:02:46]}  Nc6 {[%clk 0:02:33]} 11. O-O {[%clk 0:02:44]}  b6 {[%clk 0:02:21]} 12. c4 {[%clk 0:02:37]}  Nf6 {[%clk 0:02:19]} 13. Bb2 {[%clk 0:02:36]}  Ba6 {[%clk 0:02:14]} 14. Rfd1 {[%clk 0:02:23]}  cxd4 {[%clk 0:02:05]} 15. exd4 {[%clk 0:02:22]}  Rc8 {[%clk 0:01:59]} 16. Qe2 {[%clk 0:02:21]}  Na5 {[%clk 0:01:55]} 17. Rac1 {[%clk 0:02:14]}  Qd6 {[%clk 0:01:38]} 18. Ne5 {[%clk 0:01:52]}  Rfd8 {[%clk 0:01:26]} 19. Qe3 {[%clk 0:01:51]}  Qe7 {[%clk 0:01:07]} 20. h3 {[%clk 0:01:46]}  Rc7 {[%clk 0:00:54]} 21. Rc2 {[%clk 0:01:11]}  Rdc8 {[%clk 0:00:51]} 22. Qe2 {[%clk 0:01:10]}  Nd5 {[%clk 0:00:45]} 23. Qe4 {[%clk 0:00:50]}  Nf6 {[%clk 0:00:45]} 24. Qe2 {[%clk 0:00:46]}  Qe8 {[%clk 0:00:36]} 25. Rdc1 {[%clk 0:00:27]}  Nb3 {[%clk 0:00:33]} 26. Rd1 {[%clk 0:00:27]}  Na5 {[%clk 0:00:33]} 27. Rdc1 {[%clk 0:00:26]}  Qa4 {[%clk 0:00:34]} 28. d5 {[%clk 0:00:18]}  exd5 {[%clk 0:00:30]} 29. Ng4 {[%clk 0:00:19]}  Ne4 {[%clk 0:00:21]} 30. Bxe4 {[%clk 0:00:16]}  dxe4 {[%clk 0:00:21]} 31. Qxe4 {[%clk 0:00:17]}  Rxc4 {[%clk 0:00:17]} 32. Nxh6+ {[%clk 0:00:12]}  Kf8 {[%clk 0:00:10]} 33. Qf5 {[%clk 0:00:09]}  Qe8 {[%clk 0:00:06]} 34. Rxc4 {[%clk 0:00:01]}  Rxc4 {[%clk 0:00:06]} 0-1


[Site "https://www.chess.com"]

[Event "Titled Tuesday Blitz February 28 Early 2023"]
[White "Coelho, Ramyres Santana"]
[Black "Sourath Biswas"]
[WhiteFideId "2120690"]
[BlackFideId "35091484"]
[WhiteElo "1888"]
[BlackElo "2164"]
[Result "0-1"]
[Round "06"]
[TimeControl "180+2"]
[Date "2023.02.28"]
[WhiteClock "0:00:10"]
[BlackClock "0:00:17"]

1. e4 {[%clk 0:02:59]}  c6 {[%clk 0:02:59]} 2. d4 {[%clk 0:02:59]}  d5 {[%clk 0:02:59]} 3. Nc3 {[%clk 0:03:00]}  dxe4 {[%clk 0:02:56]} 4. Nxe4 {[%clk 0:03:00]}  Nf6 {[%clk 0:02:54]} 5. Ng3 {[%clk 0:03:00]}  Bg4 {[%clk 0:02:53]} 6. Be2 {[%clk 0:02:59]}  Bxe2 {[%clk 0:02:52]} 7. N1xe2 {[%clk 0:03:00]}  e6 {[%clk 0:02:52]} 8. O-O {[%clk 0:03:00]}  Bd6 {[%clk 0:02:45]} 9. Bg5 {[%clk 0:02:59]}  Nbd7 {[%clk 0:02:37]} 10. Ne4 {[%clk 0:02:56]}  Be7 {[%clk 0:02:37]} 11. Nxf6+ {[%clk 0:02:55]}  Nxf6 {[%clk 0:02:38]} 12. Bxf6 {[%clk 0:02:55]}  Bxf6 {[%clk 0:02:36]} 13. c3 {[%clk 0:02:54]}  O-O {[%clk 0:02:33]} 14. Ng3 {[%clk 0:02:52]}  e5 {[%clk 0:02:18]} 15. dxe5 {[%clk 0:02:50]}  Bxe5 {[%clk 0:02:18]} 16. Qxd8 {[%clk 0:02:49]}  Raxd8 {[%clk 0:02:19]} 17. Rfd1 {[%clk 0:02:49]}  g6 {[%clk 0:02:15]} 18. Kf1 {[%clk 0:02:47]}  h5 {[%clk 0:02:12]} 19. h3 {[%clk 0:02:43]}  a5 {[%clk 0:02:08]} 20. Ne2 {[%clk 0:02:38]}  a4 {[%clk 0:02:06]} 21. f4 {[%clk 0:02:37]}  Bf6 {[%clk 0:02:06]} 22. a3 {[%clk 0:02:33]}  Kg7 {[%clk 0:02:00]} 23. Ke1 {[%clk 0:02:25]}  Rfe8 {[%clk 0:01:49]} 24. Rxd8 {[%clk 0:02:24]}  Bxd8 {[%clk 0:01:47]} 25. Rd1 {[%clk 0:02:20]}  Bc7 {[%clk 0:01:37]} 26. Kf2 {[%clk 0:02:16]}  Bb6+ {[%clk 0:01:36]} 27. Nd4 {[%clk 0:02:12]}  Bc7 {[%clk 0:01:29]} 28. Kf3 {[%clk 0:02:06]}  Re7 {[%clk 0:01:25]} 29. Rd2 {[%clk 0:02:02]}  Kf6 {[%clk 0:01:06]} 30. g4 {[%clk 0:02:01]}  hxg4+ {[%clk 0:01:00]} 31. hxg4 {[%clk 0:02:02]}  g5 {[%clk 0:00:53]} 32. fxg5+ {[%clk 0:01:54]}  Kxg5 {[%clk 0:00:52]} 33. Nf5 {[%clk 0:01:53]}  Re1 {[%clk 0:00:23]} 34. Rd7 {[%clk 0:01:45]}  Be5 {[%clk 0:00:23]} 35. Rxf7 {[%clk 0:01:43]}  Rb1 {[%clk 0:00:23]} 36. Rxb7 {[%clk 0:01:39]}  Bxc3 {[%clk 0:00:24]} 37. Ne7 {[%clk 0:01:27]}  Rxb2 {[%clk 0:00:20]} 38. Rxb2 {[%clk 0:01:22]}  Bxb2 {[%clk 0:00:21]} 39. Nxc6 {[%clk 0:01:21]}  Bxa3 {[%clk 0:00:22]} 40. Nd4 {[%clk 0:01:14]}  Bb2 {[%clk 0:00:22]} 41. Nc2 {[%clk 0:01:09]}  Kf6 {[%clk 0:00:22]} 42. Kf4 {[%clk 0:01:07]}  Ke6 {[%clk 0:00:22]} 43. Ke4 {[%clk 0:01:07]}  Kd6 {[%clk 0:00:22]} 44. Ne3 {[%clk 0:01:03]}  Kc5 {[%clk 0:00:22]} 45. Kd3 {[%clk 0:01:00]}  a3 {[%clk 0:00:20]} 46. Nc2 {[%clk 0:01:00]}  a2 {[%clk 0:00:20]} 47. g5 {[%clk 0:00:57]}  Kb5 {[%clk 0:00:20]} 48. g6 {[%clk 0:00:52]}  Ka4 {[%clk 0:00:20]} 49. Kc4 {[%clk 0:00:50]}  Bg7 {[%clk 0:00:18]} 50. Kd3 {[%clk 0:00:33]}  Kb3 {[%clk 0:00:18]} 51. Kd2 {[%clk 0:00:33]}  Kb2 {[%clk 0:00:17]} 52. Kd3 {[%clk 0:00:19]}  Bc3 {[%clk 0:00:15]} 53. Na1 {[%clk 0:00:10]}  Kxa1 {[%clk 0:00:15]} 54. Kxc3 {[%clk 0:00:10]}  Kb1 {[%clk 0:00:15]} 55. g7 {[%clk 0:00:10]}  a1=Q+ {[%clk 0:00:16]} 56. Kc4 {[%clk 0:00:10]}  Qxg7 {[%clk 0:00:16]} 57. Kb3 {[%clk 0:00:10]}  Qd4 {[%clk 0:00:17]} 58. Ka3 {[%clk 0:00:10]}  Qb6 {[%clk 0:00:16]} 59. Ka4 {[%clk 0:00:10]}  Kc2 {[%clk 0:00:16]} 60. Ka3 {[%clk 0:00:10]}  Qb3# {[%clk 0:00:17]} 0-1


[Site "https://www.chess.com"]

[Event "Titled Tuesday Blitz February 28 Early 2023"]
[White "Jenkins, Drake"]
[Black "Ilkhomi, Jaloliddin"]
[WhiteFideId "2022397"]
[BlackFideId "14700948"]
[WhiteElo "2363"]
[BlackElo "2045"]
[Result "0-1"]
[Round "06"]
[TimeControl "180+2"]
[Date "2023.02.28"]
[WhiteClock "0:00:12"]
[BlackClock "0:01:20"]

1. Nf3 {[%clk 0:02:55]}  Nf6 {[%clk 0:02:59]} 2. c4 {[%clk 0:02:54]}  e6 {[%clk 0:02:59]} 3. Nc3 {[%clk 0:02:54]}  d5 {[%clk 0:02:58]} 4. cxd5 {[%clk 0:02:54]}  exd5 {[%clk 0:02:59]} 5. d4 {[%clk 0:02:54]}  c6 {[%clk 0:03:00]} 6. Bg5 {[%clk 0:02:52]}  Bf5 {[%clk 0:03:00]} 7. e3 {[%clk 0:02:50]}  Be7 {[%clk 0:03:00]} 8. Bd3 {[%clk 0:02:50]}  Ne4 {[%clk 0:03:00]} 9. Bf4 {[%clk 0:02:43]}  Nd7 {[%clk 0:02:59]} 10. h3 {[%clk 0:02:42]}  O-O {[%clk 0:02:57]} 11. Qc2 {[%clk 0:02:36]}  Ndf6 {[%clk 0:02:57]} 12. g4 {[%clk 0:02:35]}  Bg6 {[%clk 0:02:55]} 13. Ne5 {[%clk 0:02:30]}  Nxc3 {[%clk 0:02:53]} 14. Nxg6 {[%clk 0:02:21]}  hxg6 {[%clk 0:02:53]} 15. bxc3 {[%clk 0:01:50]}  Bd6 {[%clk 0:02:52]} 16. Bg5 {[%clk 0:01:47]}  Qe7 {[%clk 0:02:44]} 17. h4 {[%clk 0:01:23]}  Qe6 {[%clk 0:02:36]} 18. Bxf6 {[%clk 0:01:23]}  gxf6 {[%clk 0:01:59]} 19. Qe2 {[%clk 0:01:19]}  Rfe8 {[%clk 0:01:48]} 20. g5 {[%clk 0:01:17]}  fxg5 {[%clk 0:01:43]} 21. hxg5 {[%clk 0:01:16]}  Kg7 {[%clk 0:01:43]} 22. Kd2 {[%clk 0:01:10]}  Rh8 {[%clk 0:01:42]} 23. Qf3 {[%clk 0:01:01]}  b5 {[%clk 0:01:40]} 24. Rxh8 {[%clk 0:00:51]}  Rxh8 {[%clk 0:01:41]} 25. Rh1 {[%clk 0:00:51]}  b4 {[%clk 0:01:37]} 26. Rxh8 {[%clk 0:00:38]}  Kxh8 {[%clk 0:01:38]} 27. Qh1+ {[%clk 0:00:37]}  Kg8 {[%clk 0:01:38]} 28. Qh6 {[%clk 0:00:35]}  bxc3+ {[%clk 0:01:37]} 29. Kxc3 {[%clk 0:00:35]}  c5 {[%clk 0:01:38]} 30. Qh4 {[%clk 0:00:19]}  cxd4+ {[%clk 0:01:36]} 31. exd4 {[%clk 0:00:19]}  Qe1+ {[%clk 0:01:35]} 32. Kc2 {[%clk 0:00:17]}  Ba3 {[%clk 0:01:25]} 33. Kb3 {[%clk 0:00:12]}  Qc1 {[%clk 0:01:20]} 0-1


[Site "https://www.chess.com"]